bitfinex/quotes_SOLUSD_20240917
["timestamp","ask_amount","ask_price","bid_price","bid_amount"]
[1726560388514,7.5263,132.87,132.83,0.2606543]
[1726560391752,7.5263,132.87,132.83,7.7889543]
[1726560392428,7.5263,132.87,132.83,0.2606543]
[1726560393526,7.5267,132.86,132.83,0.2606543]
[1726560394866,20.0,132.88,132.83,0.2606543]
[1726560395033,23.776884,132.87,132.83,0.2606543]
[1726560396353,7.5284,132.83,132.81,15.9794]
[1726560396556,7.5284,132.83,132.8,6.0023]
[1726560397365,7.5279,132.84,132.8,6.0023]
[1726560397570,7.5279,132.84,132.8,13.5322]
[1726560398345,7.5279,132.84,132.79,19.0864543]
[1726560398346,7.5279,132.84,132.79,26.3564]
[1726560398539,7.5279,132.84,132.8,0.1787307]
[1726560399170,31.305784,132.83,132.8,0.1787307]
[1726560399352,7.5289,132.83,132.8,0.1787307]
[1726560400044,7.529,132.82,132.8,0.1787307]
[1726560400248,18.8174,132.86,132.8,0.1787307]
[1726560400452,31.305084,132.84,132.8,0.1787307]
[1726560401661,31.304884,132.84,132.8,26.5334307]
[1726560401964,31.304884,132.84,132.8,19.0035307]
[1726560402759,7.5285,132.83,132.8,0.1787307]
[1726560405672,23.776884,132.84,132.81,7.529]
[1726560405865,31.304784,132.84,132.8,26.5329307]
[1726560406372,7.5289,132.83,132.8,0.1787307]
[1726560407546,7.5291,132.82,132.8,0.1787307]
[1726560409472,23.776884,132.84,132.8,0.1787307]
[1726560409473,7.5295,132.81,132.8,0.1787307]
[1726560409772,7.529,132.82,132.8,0.1787307]
[1726560410675,7.5295,132.81,132.8,0.1787307]
[1726560411281,7.529,132.82,132.8,0.1787307]
[1726560415165,7.5296,132.81,132.78,15.064]
[1726560416188,7.5302,132.8,132.78,15.064]
[1726560416387,7.5302,132.8,132.77,24.9656]
[1726560416592,7.5302,132.8,132.76,7.8170922]
[1726560417765,7.5309,132.79,132.76,0.2847922]
[1726560418669,7.5297,132.81,132.77,7.5317]
[1726560418862,23.776884,132.8,132.76,7.8169922]
[1726560419186,31.307084,132.8,132.76,0.2847922]
[1726560419988,31.307084,132.8,132.76,7.8169922]
[1726560420190,23.776884,132.8,132.76,0.2847922]
[1726560420387,7.5285,132.83,132.76,0.2847922]
[1726560420592,7.5285,132.83,132.78,7.5311]
[1726560420971,7.5285,132.83,132.78,26.3587]
[1726560421282,7.5296,132.81,132.77,7.5317]
[1726560421804,7.5301,132.8,132.76,7.8169922]
[1726560423084,7.5297,132.81,132.77,7.5317]
[1726560423405,7.529,132.82,132.77,7.5317]
[1726560423589,20.0,132.83,132.78,7.5312]
[1726560423590,7.5285,132.83,132.78,7.5312]
[1726560423780,23.776884,132.84,132.79,26.3565]
[1726560424103,31.305084,132.84,132.79,26.3565]
[1726560424403,7.5285,132.83,132.79,26.3565]
[1726560424900,7.5285,132.83,132.79,18.826]
[1726560425202,7.529,132.82,132.79,18.826]
[1726560425782,7.529,132.82,132.77,7.5315]
[1726560426677,7.5297,132.81,132.77,7.5315]
[1726560426904,23.776884,132.8,132.76,26.6470922]
[1726560427081,31.307084,132.8,132.76,26.6470922]
[1726560427980,24.40529111,132.85,132.77,7.5315]
[1726560428306,24.40529111,132.85,132.79,7.5306]
[1726560428307,7.5285,132.83,132.79,7.5306]
[1726560428891,23.776884,132.84,132.8,7.53]
[1726560428892,7.5279,132.84,132.8,7.53]
[1726560429474,7.5274,132.85,132.81,7.5295]
[1726560429809,7.5268,132.86,132.81,7.5295]
[1726560429991,7.5274,132.85,132.8,26.3545]
[1726560430979,7.528,132.84,132.8,18.8246]
[1726560432904,130.52112166,132.88,132.79,22.3567]
[1726560432905,20.0,132.86,132.79,22.3567]
[1726560433085,23.776884,132.85,132.79,22.3567]
[1726560433611,7.5285,132.83,132.79,22.3567]
[1726560434105,7.5273,132.85,132.81,7.5295]
[1726560434486,7.5268,132.86,132.81,7.5295]
[1726560434791,7.5268,132.86,132.82,7.5288]
[1726560435315,27.5262,132.87,132.82,7.5288]
[1726560435506,23.776884,132.86,132.82,7.5288]
[1726560436010,31.303584,132.86,132.82,7.5288]
[1726560437709,31.303584,132.86,132.81,26.3525]
[1726560441309,23.776884,132.86,132.81,18.8231]
[1726560441628,7.5273,132.85,132.81,18.8231]
[1726560442727,7.5279,132.84,132.81,18.8231]
[1726560442912,23.776884,132.86,132.79,22.3567]
[1726560442913,7.5285,132.83,132.79,29.8872]
[1726560443508,7.5285,132.83,132.79,22.3567]
[1726560443718,7.5291,132.82,132.79,22.3567]
[1726560444209,31.304784,132.84,132.79,29.8869]
[1726560445509,7.5274,132.85,132.8,7.53]
[1726560446614,11.44330985,132.86,132.8,18.8246]
[1726560448333,11.44330985,132.86,132.82,7.5289]
[1726560448720,7.5268,132.86,132.82,7.5289]
[1726560449940,7.5268,132.86,132.81,7.5293]
[1726560450139,11.44330985,132.86,132.81,7.5293]
[1726560451337,23.776884,132.86,132.82,26.3504]
[1726560451841,31.303684,132.86,132.82,26.3504]
[1726560454259,31.303684,132.86,132.82,18.8216]
[1726560454631,7.5273,132.85,132.81,7.5293]
[1726560455444,7.5278,132.84,132.8,7.53]
[1726560455761,7.5279,132.84,132.79,48.713]
[1726560456131,7.5279,132.84,132.8,7.53]
[1726560457953,27.69339385,132.86,132.79,48.7131]
[1726560457954,7.5285,132.83,132.79,48.7131]
[1726560461748,7.528,132.84,132.79,48.7131]
[1726560463165,7.5287,132.83,132.79,48.7131]
[1726560470959,7.5289,132.82,132.79,41.1825]
[1726560472850,7.5291,132.82,132.79,22.3567]
[1726560473253,7.5285,132.83,132.79,29.8873]
[1726560476665,7.5291,132.82,132.79,22.3567]
[1726560482193,7.5286,132.83,132.79,22.3567]
[1726560482576,23.776884,132.82,132.79,22.3567]
[1726560484495,7.5286,132.83,132.79,29.8869]
[1726560488477,11.44450985,132.84,132.8,7.53]
[1726560488795,11.48541629,132.84,132.8,7.53]
[1726560495285,23.776884,132.83,132.79,22.3567]
[1726560496190,11.48521629,132.84,132.8,7.53]
[1726560496388,3.95741629,132.84,132.81,7.5294]
[1726560498405,3.95741629,132.84,132.8,26.3548]
[1726560501391,3.95741629,132.84,132.81,7.5294]
[1726560501709,3.95741629,132.85,132.82,16.1662]
[1726560503396,11.48471629,132.85,132.82,16.1662]
[1726560505723,3.95741629,132.86,132.82,34.9881]
[1726560505903,27.97762259,132.88,132.83,6.366]
[1726560505904,3.95741629,132.87,132.83,6.366]
[1726560506115,3.95741629,132.87,132.84,26.3469]
[1726560506411,24.02020629,132.88,132.84,26.3469]
[1726560506821,11.54580629,132.88,132.84,26.3469]
[1726560507317,7.5262,132.87,132.83,13.8942]
[1726560507817,7.5262,132.87,132.83,6.366]
[1726560509498,7.5262,132.87,132.83,13.8942]
[1726560510825,7.58849,132.88,132.83,13.8942]
[1726560511005,31.365374,132.88,132.84,7.5278]
[1726560515030,31.365374,132.88,132.83,32.7147]
[1726560516232,7.5261,132.87,132.83,32.7147]
[1726560521623,31.365674,132.88,132.84,7.5278]
[1726560523342,7.5263,132.87,132.83,32.7148]
[1726560525153,7.58849,132.88,132.84,7.5278]
[1726560530149,0.06279,132.88,132.85,7.5272]
[1726560533146,0.06279,132.88,132.86,7.5266]
[1726560536359,0.06279,132.88,132.85,26.3449]
[1726560538162,0.06279,132.88,132.86,7.5267]
[1726560539560,0.06279,132.88,132.85,26.345]
[1726560543459,0.06279,132.88,132.86,7.5265]
[1726560551454,0.06279,132.88,132.87,7.5261]
[1726560552752,0.06279,132.88,132.87,19.34880303]
[1726560554789,0.06279,132.88,132.87,19.34663319]
[1726560555151,0.06279,132.88,132.87,19.3462651]
[1726560556380,0.06279,132.88,132.87,19.34665351]
[1726560557266,0.06279,132.88,132.87,13.6896]
[1726560558879,0.260412,132.92,132.89,56.4356]
[1726560559177,0.260412,132.92,132.91,30.2706]
[1726560560555,0.260412,132.92,132.91,62.46321997]
[1726560562170,0.260412,132.96,132.95,26.3256]
[1726560572795,0.260412,132.96,132.95,18.804]
[1726560572983,0.260412,132.96,132.92,18.8073]
[1726560573678,0.260412,132.96,132.94,7.5221]
[1726560575688,7.781512,132.96,132.92,26.3303]
[1726560577507,7.781512,132.96,132.92,18.8073]
[1726560578383,7.5217,132.95,132.9,7.5244]
[1726560578789,7.5217,132.95,132.91,7.5237]
[1726560579780,7.5217,132.95,132.89,18.8117]
[1726560579781,7.5222,132.94,132.89,18.8117]
[1726560580492,7.5222,132.94,132.9,7.5243]
[1726560581385,7.5229,132.93,132.89,18.8117]
[1726560582174,7.5229,132.93,132.89,26.3367]
[1726560583075,43.776884,132.95,132.89,18.8117]
[1726560583288,20.0,132.95,132.91,7.5237]
[1726560584519,27.5216,132.95,132.91,7.5237]
[1726560585798,7.5223,132.94,132.89,18.8117]
[1726560586195,7.5223,132.94,132.9,7.524]
[1726560586595,27.5218,132.95,132.9,7.524]
[1726560588211,7.781412,132.96,132.89,18.8117]
[1726560588404,7.781412,132.96,132.91,7.5237]
[1726560589994,7.5217,132.95,132.91,7.5237]
[1726560591503,27.781612,132.96,132.91,7.5237]
[1726560591710,27.781612,132.96,132.92,7.5233]
[1726560591883,7.781612,132.96,132.92,7.5233]
[1726560592708,7.781612,132.96,132.91,26.333]
[1726560595290,7.5216,132.95,132.91,26.333]
[1726560599018,0.260412,132.96,132.91,18.8093]
[1726560599203,0.260412,132.96,132.92,1.50441829]
[1726560599403,0.260412,132.96,132.91,18.8093]
[1726560600321,0.260412,132.96,132.93,7.5226]
[1726560602620,0.260412,132.96,132.92,7.5231]
[1726560603131,7.781512,132.96,132.92,7.5231]
[1726560603711,7.5216,132.95,132.91,26.333]
[1726560607525,7.781612,132.96,132.92,7.5233]
[1726560608032,0.260412,132.96,132.93,7.5227]
[1726560610542,0.260412,132.96,132.95,7.5216]
[1726560612318,0.260412,132.96,132.95,61.53927738]
[1726560612630,0.260412,133.0,132.99,26.3177]
[1726560613034,0.260412,133.0,132.99,27.8210957]
[1726560613224,0.260412,133.0,132.99,44.3654957]
[1726560613416,0.260412,133.0,132.99,56.55811567]
[1726560613739,0.260412,133.0,132.99,106.51749967]
[1726560613944,0.260412,133.04,132.99,106.51749967]
[1726560613945,0.260412,133.04,133.03,26.3098]
[1726560619846,24.037296,133.04,132.96,18.8013]
[1726560620045,27.5175,133.03,132.97,7.5203]
[1726560620228,20.0,133.03,132.97,7.5203]
[1726560620428,7.5183,133.01,132.96,26.3223]
[1726560620627,7.5188,133.0,132.96,18.8013]
[1726560621041,7.5188,133.0,132.96,27.82603994]
[1726560621220,7.5188,133.0,132.96,26.3221]
[1726560622243,7.5188,133.0,132.96,18.8013]
[1726560622447,20.0,133.03,132.97,7.5203]
[1726560622818,20.0,133.03,132.98,7.5199]
[1726560622819,7.5178,133.02,132.98,7.5199]
[1726560623035,0.260412,133.04,132.99,7.5193]
[1726560623229,7.777012,133.04,132.99,7.5193]
[1726560623635,7.777012,133.04,133.0,7.5186]
[1726560624644,7.777012,133.04,132.99,7.5192]
[1726560627936,0.260412,133.04,133.0,18.7962]
[1726560628143,0.260412,133.04,133.01,1.50326327]
[1726560628334,0.260412,133.04,133.0,18.7962]
[1726560628534,0.260412,133.04,133.03,7.5171]
[1726560630655,0.260412,133.04,133.03,9.0200035]
[1726560631457,0.260412,133.04,133.03,7.5171]
[1726560633655,0.260412,133.04,133.03,9.01947846]
[1726560634032,0.260412,133.04,133.03,7.5171]
[1726560640550,0.260412,133.04,133.03,9.02003517]
[1726560640726,0.260412,133.04,133.03,7.5171]
[1726560643656,0.260412,133.04,133.02,26.3109]
[1726560644033,0.260412,133.04,133.03,7.5171]
[1726560644662,0.260412,133.04,133.02,18.7934]
[1726560646155,0.260412,133.04,132.99,40.517]
[1726560646456,0.260412,133.04,133.0,7.5183]
[1726560648957,0.260412,133.04,133.01,7.5182]
[1726560650439,0.260412,133.04,133.0,7.5186]
[1726560652953,0.260412,133.04,132.99,40.517]
[1726560652954,0.260412,133.04,133.01,18.7951]
[1726560653255,0.260412,133.04,133.01,26.3131]
[1726560653641,0.260412,133.04,133.01,18.7951]
[1726560654145,7.777012,133.04,133.01,18.7951]
[1726560656168,7.777012,133.04,132.99,22.8896]
[1726560656169,7.5172,133.03,132.99,22.8896]
[1726560660349,7.5177,133.02,132.98,26.3189]
[1726560660559,0.260412,133.04,132.99,7.5193]
[1726560660758,0.260412,133.04,132.98,18.7991]
[1726560660759,7.777012,133.04,133.0,7.5186]
[1726560660966,0.260412,133.04,133.0,7.5186]
[1726560662262,0.260412,133.04,132.98,18.7991]
[1726560662473,7.777012,133.04,133.0,26.3144]
[1726560664163,0.260412,133.04,133.01,7.5179]
[1726560664365,0.260412,133.04,133.02,9.02004842]
[1726560664958,0.260412,133.04,133.02,7.5175]
[1726560665178,0.260412,133.04,133.03,1.50320578]
[1726560665345,0.260412,133.04,133.02,7.5175]
[1726560670971,0.260412,133.04,133.01,7.5178]
[1726560672276,0.260412,133.04,133.02,7.5176]
[1726560673470,0.260412,133.04,133.03,9.0202321]
[1726560674175,0.260412,133.04,133.03,7.5171]
[1726560674777,0.260412,133.04,133.03,9.02019082]
[1726560675682,0.260412,133.04,133.03,7.5171]
[1726560677190,0.260412,133.04,133.02,26.3112]
[1726560678773,0.260412,133.04,133.01,7.518]
[1726560678960,0.260412,133.04,133.0,23.9443]
[1726560679285,0.260412,133.04,133.0,7.5187]
[1726560679580,0.260412,133.04,133.01,7.5181]
[1726560682065,7.776912,133.04,133.0,7.5186]
[1726560684084,7.776912,133.04,132.99,26.3167]
[1726560686064,7.5172,133.03,132.99,26.3167]
[1726560689498,0.260412,133.04,132.99,18.7976]
[1726560690395,7.5172,133.03,132.99,26.3167]
[1726560691576,7.777112,133.04,132.99,26.3167]
[1726560692284,7.777112,133.04,132.99,26.28665]
[1726560694494,7.777112,133.04,133.0,7.5184]
[1726560694791,7.777112,133.04,132.99,26.28665]
[1726560695874,7.5173,133.03,132.99,26.28665]
[1726560696381,7.777112,133.04,132.99,26.28665]
[1726560696582,0.260412,133.04,133.0,7.5186]
[1726560696896,0.260412,133.04,133.02,7.5176]
[1726560697078,0.260412,133.04,133.01,18.7952]
[1726560697792,0.260412,133.04,133.01,26.313]
[1726560703494,7.776912,133.04,133.01,18.7952]
[1726560704500,7.776912,133.04,132.99,7.5191]
[1726560705301,7.776912,133.04,133.0,7.5187]
[1726560709999,7.776912,133.04,133.01,1.5034143]
[1726560710205,7.776912,133.04,133.0,7.5187]
[1726560711207,0.260412,133.04,133.0,7.5187]
[1726560713490,0.260412,133.04,133.01,1.50334314]
[1726560713703,0.260412,133.04,133.0,7.5187]
[1726560715202,7.5177,133.02,132.98,26.3188]
[1726560715412,7.5172,133.03,132.98,26.3188]
[1726560715779,7.5172,133.03,132.99,7.5191]
[1726560718006,7.777112,133.04,133.0,1.50353933]
[1726560718299,7.777112,133.04,132.99,7.5191]
[1726560718721,7.777112,133.04,133.0,7.5187]
[1726560723530,0.260412,133.04,133.02,7.5176]
[1726560723705,0.260412,133.04,133.0,18.7967]
[1726560725019,0.260412,133.04,133.01,1.50332391]
[1726560725216,0.260412,133.04,133.02,1.50331572]
[1726560725423,0.260412,133.04,133.01,7.518]
[1726560725801,0.260412,133.04,133.02,1.50332118]
[1726560726008,0.260412,133.04,133.02,7.5175]
[1726560728226,0.260412,133.04,133.03,7.5171]
[1726560733530,0.260412,133.04,133.02,26.3109]
[1726560734920,0.260412,133.04,133.02,18.7935]
[1726560739415,0.260412,133.04,133.02,26.311]
[1726560746055,0.260412,133.04,133.03,7.5171]
[1726560748148,0.260412,133.04,133.03,14.65688874]
[1726560749831,0.260412,133.04,133.03,13.15455793]
[1726560750060,0.260412,133.04,133.03,36.93144193]
[1726560750435,0.260412,133.04,133.03,38.43420303]
[1726560750757,0.260412,133.04,133.03,36.93144193]
[1726560751656,0.260412,133.04,133.03,13.15455793]
[1726560752353,0.260412,133.04,133.03,7.5171]
[1726560754640,0.260412,133.04,133.03,9.02011705]
[1726560755534,0.260412,133.04,133.03,7.5171]
[1726560756341,0.260412,133.04,133.03,9.02003575]
[1726560756550,0.260412,133.04,133.03,7.5171]
[1726560764684,0.260412,133.04,133.03,9.02005913]
[1726560765045,0.260412,133.04,133.03,7.5171]
[1726560766853,0.260412,133.04,133.03,9.01941618]
[1726560767168,0.260412,133.04,133.03,31.293984]
[1726560770252,0.260412,133.04,133.03,7.5171]
[1726560779469,0.260412,133.04,133.03,13.15908682]
[1726560780289,0.260412,133.04,133.03,7.5171]
[1726560780485,0.260412,133.04,133.03,13.15937669]
[1726560780787,0.260412,133.04,133.03,13.15945791]
[1726560782170,0.260412,133.04,133.03,7.5171]
[1726560782374,0.260412,133.04,133.03,13.15906497]
[1726560782894,0.260412,133.04,133.03,13.15906739]
[1726560783072,0.260412,133.04,133.03,7.5171]
[1726560783492,0.260412,133.04,133.03,13.15941598]
[1726560784671,0.260412,133.04,133.03,14.66233032]
[1726560785008,0.260412,133.04,133.03,13.15941598]
[1726560786496,0.260412,133.04,133.03,7.5171]
[1726560786677,0.260412,133.04,133.03,13.15931938]
[1726560788399,0.260412,133.04,133.03,14.66226072]
[1726560788598,0.260412,133.04,133.03,13.15931938]
[1726560789794,0.260412,133.04,133.03,7.5171]
[1726560790100,0.260412,133.04,133.03,13.15978565]
[1726560795502,0.260412,133.04,133.03,14.66259358]
[1726560797480,0.260412,133.04,133.03,14.66001709]
[1726560797685,0.260412,133.04,133.03,13.15720916]
[1726560801001,0.260412,133.04,133.03,7.5171]
[1726560801299,0.260412,133.04,133.03,13.15745364]
[1726560802178,0.260412,133.04,133.03,13.15744269]
[1726560803182,0.260412,133.04,133.03,14.6602605]
[1726560803389,0.260412,133.04,133.03,13.15744269]
[1726560803603,0.210412,133.04,133.03,12.15744269]
[1726560804798,0.210412,133.04,133.03,6.5171]
[1726560805115,0.210412,133.04,133.03,12.15727233]
[1726560808117,0.210412,133.04,133.03,35.93415633]
[1726560808488,0.210412,133.04,133.03,30.293984]
[1726560808694,0.210412,133.04,133.03,35.93354274]
[1726560809096,0.210412,133.04,133.03,35.93347012]
[1726560816212,0.210412,133.04,133.03,12.15658612]
[1726560816514,0.210412,133.04,133.03,12.15718229]
[1726560817098,0.210412,133.04,133.03,35.93406629]
[1726560820328,0.210412,133.04,133.03,30.293984]
[1726560820492,0.210412,133.04,133.03,41.56774296]
[1726560820694,0.210412,133.04,133.03,35.93088768]
[1726560827620,0.210412,133.04,133.03,12.15400368]
[1726560828326,0.210412,133.04,133.03,12.15377925]
[1726560832431,0.210412,133.04,133.03,6.5171]
[1726560832737,0.210412,133.04,133.03,12.15451748]
[1726560833521,0.210412,133.04,133.03,6.5171]
[1726560833829,0.210412,133.04,133.03,12.15421095]
[1726560834036,0.210412,133.04,133.03,13.65704819]
[1726560834835,0.210412,133.04,133.03,35.93109495]
[1726560836606,0.210412,133.04,133.03,12.15421095]
[1726560836931,0.210412,133.04,133.03,37.4339852]
[1726560837131,0.210412,133.04,133.03,35.93109495]
[1726560839233,0.210412,133.04,133.03,37.43392525]
[1726560839613,0.210412,133.04,133.03,31.7968143]
[1726560839908,0.210412,133.04,133.03,37.43480965]
[1726560840128,0.210412,133.04,133.03,42.57097935]
[1726560840441,0.210412,133.04,133.03,44.07373839]
[1726560840619,0.210412,133.04,133.03,42.57097935]
[1726560842312,0.210412,133.04,133.03,36.932984]
[1726560842514,0.210412,133.04,133.03,42.57062201]
[1726560843025,0.210412,133.04,133.03,42.57053922]
[1726560846218,0.210412,133.04,133.03,35.93175872]
[1726560847138,0.210412,133.04,133.03,12.15487472]
[1726560850028,0.210412,133.04,133.03,6.5171]
[1726560850229,0.210412,133.04,133.03,11.75730786]
[1726560853939,0.210412,133.04,133.03,6.119774]
[1726560854143,0.210412,133.04,133.03,11.75740511]
[1726560857438,0.210412,133.04,133.03,49.22470627]
[1726560857744,0.210412,133.04,133.03,47.72165705]
[1726560858114,0.210412,133.04,133.03,49.22443886]
[1726560858320,0.210412,133.04,133.03,47.72165705]
[1726560859421,0.210412,133.04,133.03,35.53428911]
[1726560860850,0.210412,133.04,133.03,35.53365446]
[1726560865126,0.210412,133.04,133.03,11.75701142]
[1726560867763,0.210412,133.04,133.03,13.2600437]
[1726560868148,0.210412,133.04,133.03,7.62280628]
[1726560868331,0.210412,133.04,133.03,11.7628817]
[1726560885867,0.210412,133.04,133.03,11.76084612]
[1726560886179,0.210412,133.04,133.03,5.64107212]
[1726560886345,0.210412,133.04,133.02,18.7935]
[1726560887475,0.210412,133.04,133.02,26.311]
[1726560888972,0.210412,133.04,133.02,18.7935]
[1726560892179,0.210412,133.04,133.01,7.5181]
[1726560901686,0.210412,133.04,133.01,18.795]
[1726560901887,0.210412,133.04,133.03,7.5171]
[1726560902266,0.210412,133.04,133.02,7.5174]
[1726560902786,0.210412,133.04,133.01,26.3131]
[1726560903379,0.210412,133.04,133.02,7.5175]
[1726560904192,0.210412,133.04,133.01,26.313]
[1726560904983,0.210412,133.04,133.03,7.5171]
[1726560909699,0.210412,133.04,133.02,7.5174]
[1726560921814,7.5171,133.03,132.99,7.5188]
[1726560922190,7.727112,133.04,132.99,7.5188]
[1726560923909,7.727112,133.04,133.0,7.5187]
[1726560929214,7.727112,133.04,132.99,7.5191]
[1726560931330,7.727112,133.04,133.0,7.5186]
[1726560933708,7.5171,133.03,132.99,7.5191]
[1726560937938,0.210412,133.04,133.0,18.7966]
[1726560938240,0.210412,133.04,133.02,7.5174]
[1726560938531,0.210412,133.04,133.03,9.01956886]
[1726560938726,0.210412,133.04,133.03,7.5171]
[1726560940228,0.210412,133.04,133.02,26.3108]
[1726560940624,0.210412,133.04,133.02,18.7933]
[1726560940822,0.210412,133.04,133.01,7.5181]
[1726560941714,0.210412,133.04,133.02,7.5175]
[1726560942223,0.210412,133.04,133.03,7.5171]
[1726560942438,0.210412,133.04,133.02,7.5175]
[1726560944121,0.210412,133.04,133.03,7.5171]
[1726560950435,0.210412,133.04,133.02,7.5175]
[1726560951151,0.210412,133.04,133.03,7.5171]
[1726560963159,0.210412,133.04,133.03,32.79697638]
[1726560964961,0.210412,133.04,133.03,31.293984]
[1726560968353,0.210412,133.04,133.03,32.79677721]
[1726560968659,0.210412,133.04,133.03,64.98408437]
[1726560968838,0.210412,133.04,133.03,63.48135194]
[1726560969162,0.210412,133.04,133.03,79.29015194]
[1726560970462,0.210412,133.04,133.03,67.102784]
[1726560970768,0.210412,133.04,133.03,47.102784]
[1726560975663,0.210412,133.04,133.03,23.3259]
[1726560976047,0.210412,133.04,133.03,7.5171]
[1726560976555,0.210412,133.04,133.02,7.5175]
[1726560976958,0.210412,133.04,133.01,18.7949]
[1726560979270,0.210412,133.04,133.03,7.5171]
[1726560980178,0.210412,133.04,133.01,26.3129]
[1726560980381,0.210412,133.04,133.01,18.7949]
[1726560981255,0.210412,133.04,133.03,7.5171]
[1726560983562,0.210412,133.04,133.03,31.293984]
[1726560989357,0.210412,133.04,133.03,36.94079907]
[1726560989778,0.210412,133.04,133.03,36.94055165]
[1726560991584,0.210412,133.04,133.03,36.94051279]
[1726560993175,0.210412,133.04,133.03,36.93933843]
[1726560996370,0.210412,133.04,133.03,31.293984]
[1726560996688,0.210412,133.04,133.03,36.93715525]
[1726560998194,0.210412,133.04,133.03,53.46195525]
[1726560999374,0.210412,133.04,133.03,29.68507125]
[1726560999971,0.210412,133.04,133.03,24.0419]
[1726561000295,0.210412,133.04,133.03,29.68651979]
[1726561000465,0.210412,133.04,133.03,13.16190939]
[1726561001097,0.210412,133.04,133.02,7.5175]
[1726561005401,0.210412,133.04,133.01,18.7949]
[1726561005609,0.210412,133.04,132.98,6.3446]
[1726561005808,7.727012,133.04,132.99,13.16849146]
[1726561005980,7.727012,133.04,132.99,7.5189]
[1726561006599,7.727012,133.04,132.98,26.3187]
[1726561006600,7.5175,133.03,132.98,26.3187]
[1726561006794,7.5175,133.03,132.99,13.16941129]
[1726561007106,7.5175,133.03,132.99,7.5193]
[1726561009598,7.727112,133.04,133.0,7.5184]
[1726561010315,0.210412,133.04,133.0,7.5184]
[1726561013615,0.210412,133.04,133.01,7.5181]
[1726561022730,7.5177,133.02,132.98,7.5198]
[1726561023527,7.727012,133.04,133.0,7.5187]
[1726561024026,0.210412,133.04,133.0,7.5187]
[1726561027029,7.727012,133.04,133.0,7.5187]
[1726561027456,7.5174,133.03,132.99,26.3166]
[1726561028122,7.5177,133.02,132.99,18.7974]
[1726561030034,7.5172,133.03,132.99,18.7974]
[1726561031033,7.5178,133.02,132.99,18.7974]
[1726561035146,0.210412,133.04,132.99,18.7974]
[1726561035147,7.5171,133.03,132.99,26.3166]
[1726561036323,7.5171,133.03,132.99,18.7974]
[1726561037136,7.5171,133.03,132.99,26.3166]
[1726561038525,7.5178,133.02,132.99,18.7974]
[1726561038914,7.5178,133.02,132.97,7.5201]
[1726561041145,0.210412,133.04,132.96,34.1576]
[1726561041366,4.2256,133.03,132.96,26.3224]
[1726561041849,7.5186,133.01,132.96,26.3224]
[1726561043138,7.5177,133.02,132.96,18.8016]
[1726561043353,7.5177,133.02,132.98,7.5197]
[1726561047138,7.5182,133.01,132.97,7.5203]
[1726561047347,7.5188,133.0,132.96,26.3225]
[1726561052551,7.5188,133.0,132.96,18.8016]
[1726561054153,7.5195,132.99,132.96,18.8016]
[1726561055337,7.5195,132.99,132.95,7.5214]
[1726561059962,7.5199,132.98,132.94,7.572]
[1726561062839,7.5199,132.98,132.94,0.05]
[1726561064076,7.5207,132.97,132.94,0.05]
[1726561069278,7.52,132.98,132.94,7.5721]
[1726561070582,7.5204,132.97,132.94,0.05]
[1726561074456,7.5211,132.96,132.94,0.05]
[1726561077293,7.5211,132.96,132.94,0.05]
[1726561078288,7.5216,132.95,132.94,0.05]
[1726561078684,7.5211,132.96,132.94,0.05]
[1726561081276,7.5216,132.95,132.94,0.05]
[1726561083288,7.5216,132.95,132.9,35.513812]
[1726561083289,7.5229,132.93,132.9,16.703812]
[1726561083472,10.34188436,132.97,132.9,16.703812]
[1726561083473,7.5233,132.92,132.9,16.703812]
[1726561088201,7.5233,132.92,132.9,0.260412]